bitfinex/quotes_SOLUSD_20250616
["timestamp","ask_amount","ask_price","bid_price","bid_amount"]
[1750106808649,7.58288395,157.58,157.54,7.58288395]
[1750106809250,7.58288395,157.58,157.53,22.21792081]
[1750106809456,7.58288395,157.58,157.54,7.58288395]
[1750106810545,8.2218,157.6,157.55,6.34719136]
[1750106810775,7.58288395,157.59,157.55,6.34719136]
[1750106810967,7.58288395,157.58,157.55,6.34719136]
[1750106811273,8.2218,157.6,157.55,6.34719136]
[1750106811564,8.2218,157.6,157.57,7.58288395]
[1750106811764,8.2218,157.6,157.55,22.21516977]
[1750106811765,10.38711495,157.61,157.58,7.58288395]
[1750106812741,10.38711495,157.61,157.59,6.3455803]
[1750106816372,10.38711495,157.61,157.59,13.92846425]
[1750106817270,10.38711495,157.61,157.54,44.64964886]
[1750106817575,10.38711495,157.61,157.59,7.58288395]
[1750106818451,10.38711495,157.61,157.6,6.34517766]
[1750106819350,17.9699989,157.61,157.58,6.3456061]
[1750106819752,10.38711495,157.61,157.58,6.3456061]
[1750106820964,7.58288395,157.6,157.55,6.34719136]
[1750106821152,7.58288395,157.58,157.55,6.34719136]
[1750106821551,7.58288395,157.57,157.55,6.34719136]
[1750106822054,7.58288395,157.56,157.53,6.34775246]
[1750106822660,7.8866,157.57,157.53,6.34775246]
[1750106822883,7.58288395,157.56,157.53,6.34775246]
[1750106826278,7.8866,157.57,157.5,22.22129155]
[1750106826279,7.58288395,157.55,157.5,22.22129155]
[1750106826583,7.58288395,157.55,157.51,7.58288395]
[1750106826958,7.58288395,157.55,157.5,29.8041755]
[1750106827356,7.58288395,157.55,157.5,13.93209029]
[1750106827562,7.58288395,157.54,157.5,13.93209029]
[1750106827788,18.79181043,157.52,157.41,10.08152781]
[1750106827953,18.79181043,157.52,157.42,53.99568033]
[1750106827954,7.58288395,157.52,157.42,53.99568033]
[1750106828156,7.58288395,157.53,157.48,7.58288395]
[1750106828377,7.58288395,157.53,157.49,13.93249344]
[1750106829270,7.58288395,157.52,157.49,6.34960949]
[1750106829489,32.3477071,157.54,157.45,6.35122261]
[1750106829490,7.58288395,157.51,157.45,6.35122261]
[1750106829660,7.58288395,157.5,157.46,7.58288395]
[1750106830002,7.58288395,157.49,157.45,13.93410656]
[1750106830176,7.58288395,157.49,157.45,6.35122261]
[1750106830487,7.7247,157.52,157.45,6.35122261]
[1750106830488,7.58288395,157.48,157.45,6.35122261]
[1750106830780,7.58288395,157.49,157.45,6.35122261]
[1750106830983,7.58288395,157.49,157.45,13.93410656]
[1750106831479,14.07321072,157.52,157.45,6.35122261]
[1750106831480,0.14216157,157.51,157.45,6.35122261]
[1750106831657,7.58288395,157.49,157.45,6.35122261]
[1750106831853,7.58288395,157.49,157.45,13.93410656]
[1750106833075,7.58288395,157.49,157.45,6.35122261]
[1750106833394,7.58288395,157.49,157.45,13.93410656]
[1750106833884,7.58288395,157.51,157.47,7.58288395]
[1750106834093,7.58288395,157.5,157.46,7.58288395]
[1750106834469,7.58288395,157.5,157.47,6.35041595]
[1750106834977,17.93613525,157.49,157.45,7.58288395]
[1750106835390,17.93613525,157.49,157.43,22.23210315]
[1750106835571,17.93613525,157.49,157.45,7.58288395]
[1750106835771,17.93613525,157.49,157.43,22.23210315]
[1750106835967,7.58288395,157.48,157.43,6.35202947]
[1750106836169,17.93613525,157.49,157.44,7.58288395]
[1750106836385,17.93613525,157.49,157.45,6.35122261]
[1750106837995,17.93613525,157.49,157.45,13.93410656]
[1750106838182,10.3532513,157.49,157.45,13.93410656]
[1750106838380,17.93613525,157.49,157.42,48.23348371]
[1750106838699,17.93613525,157.49,157.45,7.58288395]
[1750106838895,17.93613525,157.49,157.42,22.23348371]
[1750106839095,17.93613525,157.49,157.45,7.58288395]
[1750106839416,17.93613525,157.49,157.44,7.58288395]
[1750106839702,17.93613525,157.49,157.45,7.58288395]
[1750106840493,17.93613525,157.49,157.46,6.35081925]
[1750106843097,10.3532513,157.49,157.46,6.35081925]
[1750106843306,17.93613525,157.49,157.46,6.35081925]
[1750106844697,7.58288395,157.48,157.43,6.35202947]
[1750106844883,7.58288395,157.48,157.43,13.93491342]
[1750106845081,7.58288395,157.48,157.44,7.58288395]
[1750106845387,17.93613525,157.49,157.45,7.58288395]
[1750106846199,17.93613525,157.49,157.43,15.88007368]
[1750106846404,17.93613525,157.49,157.45,7.58288395]
[1750106848195,7.58288395,157.48,157.45,6.35122261]
[1750106849627,17.93613525,157.49,157.45,7.58288395]
[1750106850113,17.93613525,157.49,157.43,15.88007368]
[1750106850406,17.93613525,157.49,157.45,7.58288395]
[1750106850581,17.93613525,157.49,157.43,15.88007368]
[1750106850982,17.93613525,157.49,157.44,7.58288395]
[1750106851423,7.7717,157.48,157.42,6.35243298]
[1750106851624,7.58288395,157.45,157.41,6.35283654]
[1750106851788,7.58288395,157.45,157.41,13.93572049]
[1750106852120,15.35458395,157.48,157.43,7.58288395]
[1750106853125,15.35458395,157.48,157.44,6.35162601]
[1750106853694,7.7717,157.48,157.44,13.93450996]
[1750106857600,10.3532513,157.49,157.47,7.58288395]
[1750106857906,10.3532513,157.49,157.48,7.58288395]
[1750106859613,10.3532513,157.49,157.48,13.93289665]
[1750106860718,9.8532513,157.49,157.48,13.93289665]
[1750106863728,7.9657,157.55,157.48,29.8079284]
[1750106863931,7.9657,157.55,157.53,7.58288395]
[1750106864234,7.9657,157.55,157.48,22.22504445]
[1750106864408,7.9657,157.55,157.53,7.58288395]
[1750106864603,7.9657,157.55,157.52,7.58288395]
[1750106865635,7.9657,157.55,157.48,22.22504445]
[1750106865817,7.9657,157.55,157.53,7.58288395]
[1750106866624,7.9657,157.55,157.53,13.93050421]
[1750106866940,7.9657,157.55,157.53,6.34762026]
[1750106868818,7.9657,157.55,157.48,48.22504445]
[1750106869017,7.9657,157.55,157.52,7.58288395]
[1750106870151,7.9657,157.55,157.51,7.58288395]
[1750106871910,7.9657,157.55,157.52,7.58288395]
[1750106872737,7.9657,157.55,157.52,13.93090073]
[1750106880447,7.9657,157.55,157.53,7.58288395]
[1750106881635,26.0,157.58,157.54,7.58288395]
[1750106883228,26.0,157.58,157.54,13.93024356]
[1750106884132,32.3461845,157.58,157.52,6.3484002]
[1750106884440,32.3461845,157.58,157.51,15.87199203]
[1750106884441,18.79181043,157.57,157.51,6.34862031]
[1750106884631,7.58288395,157.54,157.51,6.34862031]
[1750106885249,7.58288395,157.54,157.49,15.87394909]
[1750106885422,7.58288395,157.54,157.5,7.58288395]
[1750106885617,6.34683399,157.56,157.51,7.58288395]
[1750106885618,7.58288395,157.55,157.51,7.58288395]
[1750106885819,0.14216157,157.57,157.52,7.58288395]
[1750106886020,14.7562,157.59,157.56,7.58288395]
[1750106887232,22.33908395,157.59,157.55,13.92973585]
[1750106888824,7.58288395,157.58,157.54,13.93030882]
[1750106889024,7.58288395,157.58,157.54,6.34742487]
[1750106889225,7.58288395,157.57,157.53,6.34782828]
[1750106889426,7.58288395,157.57,157.53,13.93071223]
[1750106890331,7.72504552,157.58,157.53,13.93071223]
[1750106890532,7.72504552,157.58,157.53,6.34782828]
[1750106890726,7.72504552,157.58,157.53,13.93071223]
[1750106892149,7.72504552,157.58,157.53,6.34782828]
[1750106892322,7.72504552,157.58,157.54,7.58288395]
[1750106894154,14.07112024,157.58,157.54,7.58288395]
[1750106895128,7.72504552,157.58,157.54,13.93043451]
[1750106895658,7.72504552,157.58,157.54,7.58288395]
[1750106896962,7.72504552,157.58,157.5,61.92222221]
[1750106897137,7.72504552,157.58,157.54,7.58288395]
[1750106897334,7.58288395,157.57,157.53,7.58288395]
[1750106897644,7.58288395,157.57,157.53,6.3479972]
[1750106898236,7.58288395,157.56,157.52,7.58288395]
[1750106898443,7.58288395,157.55,157.51,6.34855321]
[1750106898952,7.58288395,157.55,157.5,7.58288395]
[1750106899334,7.72504552,157.56,157.51,7.58288395]
[1750106899559,33.58288395,157.57,157.52,13.93128415]
[1750106899754,14.7562,157.59,157.55,7.58288395]
[1750106900647,14.7562,157.59,157.54,7.58288395]
[1750106900648,7.58288395,157.58,157.54,7.58288395]
[1750106901251,7.58288395,157.58,157.53,7.58288395]
[1750106901463,7.58288395,157.57,157.52,13.93128415]
[1750106901866,7.72504552,157.56,157.52,13.93128415]
[1750106902162,7.72504552,157.56,157.52,6.3484002]
[1750106902333,7.72504552,157.56,157.52,13.93128415]
[1750106903841,0.14216157,157.56,157.52,13.93128415]
[1750106904245,7.72504552,157.56,157.49,22.22276917]
[1750106904564,0.14216157,157.56,157.52,7.58288395]
[1750106904864,14.7562,157.59,157.55,7.58288395]
[1750106905070,14.7562,157.59,157.56,7.58288395]
[1750106905265,14.7562,157.59,157.52,7.58288395]
[1750106905467,14.7562,157.59,157.55,7.58288395]
[1750106906251,14.7562,157.59,157.56,6.34678852]
[1750106906660,22.33908395,157.59,157.56,6.34678852]
[1750106907357,22.33908395,157.59,157.55,13.92991879]
[1750106908063,7.58288395,157.58,157.54,13.93031121]
[1750106909142,7.58288395,157.58,157.5,6.34920634]
[1750106909143,7.58288395,157.55,157.5,6.34920634]
[1750106909369,7.58288395,157.55,157.5,13.93209029]
[1750106909575,7.58288395,157.54,157.5,13.93209029]
[1750106910472,7.58288395,157.54,157.5,7.58288395]
[1750106911544,7.58288395,157.54,157.5,13.93183672]
[1750106912675,33.58288395,157.55,157.5,13.93183672]
[1750106913466,39.93032169,157.55,157.5,13.93183672]
[1750106913668,7.58288395,157.54,157.5,13.93183672]
[1750106915097,32.34743774,157.55,157.5,13.93183672]
[1750106915098,26.0,157.55,157.5,13.93183672]
[1750106915264,33.58288395,157.55,157.51,7.58288395]
[1750106915859,0.14216157,157.57,157.5,6.34895277]
[1750106915860,0.14216157,157.57,157.53,7.58288395]
[1750106916382,7.72504552,157.57,157.53,7.58288395]
[1750106916556,33.58288395,157.58,157.53,7.58288395]
[1750106917067,7.58288395,157.57,157.53,7.58288395]
[1750106917268,26.0,157.58,157.53,13.93054359]
[1750106917476,7.58288395,157.57,157.53,13.93054359]
[1750106922279,33.58288395,157.58,157.53,13.93054359]
[1750106922478,7.58288395,157.57,157.53,13.93054359]
[1750106923461,26.0,157.58,157.54,7.58288395]
[1750106923678,39.92886989,157.58,157.54,7.58288395]
[1750106924566,7.58288395,157.57,157.53,13.93054359]
[1750106925692,20.81574533,157.57,157.53,13.93054359]
[1750106927889,13.23286138,157.57,157.53,13.93054359]
[1750106928790,13.23286138,157.57,157.53,7.58288395]
[1750106930667,20.81574533,157.57,157.53,7.58288395]
[1750106932181,20.81574533,157.57,157.53,13.93074679]
[1750106932689,13.23286138,157.57,157.53,13.93074679]
[1750106933383,13.23286138,157.57,157.54,7.58288395]
[1750106933576,13.23286138,157.57,157.53,6.34786284]
[1750106933577,13.23286138,157.57,157.56,7.58288395]
[1750106934702,13.23286138,157.57,157.56,13.92967247]
[1750106940886,13.23286138,157.57,157.53,53.63071358]
[1750106941504,13.23286138,157.57,157.54,7.58288395]
[1750106942198,19.57930451,157.57,157.53,46.04782963]
[1750106942382,20.81574533,157.57,157.53,46.04782963]
[1750106942900,20.81574533,157.57,157.53,53.63071358]
[1750106944177,13.23286138,157.57,157.54,7.58288395]
[1750106944409,13.23286138,157.57,157.56,7.58288395]
[1750106945081,7.8362,157.59,157.56,7.58288395]
[1750106945282,0.14216157,157.62,157.58,7.58288395]
[1750106945688,7.72504552,157.62,157.57,7.58288395]
[1750106946798,7.72504552,157.62,157.57,13.92912169]
[1750106947006,20.96437586,157.62,157.57,13.92912169]
[1750106947185,27.30876568,157.62,157.57,13.92912169]
[1750106950509,19.72588173,157.62,157.57,13.92912169]
[1750106950688,27.30876568,157.62,157.57,13.92912169]
[1750106951984,20.96437586,157.62,157.57,13.92912169]
[1750106952494,27.3088315,157.62,157.58,7.58288395]
[1750106952883,27.3088315,157.62,157.57,13.92912169]
[1750106953083,7.58288395,157.6,157.54,6.34759426]
[1750106953293,7.58288395,157.56,157.53,39.7]
[1750106953506,7.7554,157.58,157.55,7.58288395]
[1750106953702,0.14216157,157.6,157.57,7.58288395]
[1750106953899,14.07042769,157.6,157.55,7.58288395]
[1750106954099,7.58288395,157.58,157.53,7.58288395]
[1750106954284,7.58288395,157.57,157.53,7.58288395]
[1750106954486,7.58288395,157.57,157.52,7.58288395]
[1750106956101,13.92960676,157.57,157.52,13.93116356]
[1750106959114,13.92960676,157.57,157.52,7.58288395]
[1750106959416,13.92960676,157.57,157.52,13.93116515]
[1750106961013,13.92960676,157.57,157.51,6.34880325]
[1750106961205,13.92960676,157.57,157.51,7.58288395]
[1750106961206,7.58288395,157.56,157.51,7.58288395]
[1750106961510,21.83840676,157.57,157.53,7.58288395]
[1750106961698,14.25552281,157.57,157.53,7.58288395]
[1750106965337,7.9088,157.57,157.53,7.58288395]
[1750106965496,8.1325,157.61,157.56,7.58288395]
[1750106965814,8.1325,157.61,157.53,26.0]
[1750106966120,7.58288395,157.59,157.55,7.58288395]
[1750106967101,7.58288395,157.59,157.53,6.3479972]
[1750106967305,7.58288395,157.59,157.55,7.58288395]
[1750106967820,7.58288395,157.6,157.55,7.58288395]
[1750106969217,7.58288395,157.6,157.56,6.34678852]
[1750106971232,8.1325,157.61,157.56,6.34678852]
[1750106971403,8.1325,157.61,157.59,7.58288395]
[1750106971604,13.23933034,157.62,157.59,7.58288395]
[1750106972225,13.23933034,157.62,157.6,7.58288395]
[1750106973101,13.23933034,157.62,157.61,7.58288395]
[1750106973303,13.23933034,157.62,157.61,13.92765902]
[1750106976525,13.23933034,157.62,157.61,6.34477507]
[1750106976726,13.23933034,157.62,157.61,13.92765902]
[1750106979918,14.2641,157.69,157.61,95.48959671]
[1750106980139,14.2641,157.69,157.67,7.58288395]
[1750106981409,14.2641,157.69,157.66,7.58288395]
[1750106983128,14.2641,157.69,157.65,6.34304326]
[1750106983432,6.24,157.69,157.65,6.34304326]
[1750106983635,6.24,157.69,157.63,15.85971753]
[1750106983636,6.24,157.69,157.68,7.58288395]
[1750106983810,32.90357637,157.72,157.68,7.58288395]
[1750106984016,32.90357637,157.72,157.69,7.58288395]
[1750106984425,32.90357637,157.72,157.65,39.7]
[1750106984737,7.58288395,157.71,157.65,39.7]
[1750106984935,7.58288395,157.71,157.67,7.58288395]
[1750106985734,13.92375372,157.71,157.66,6.3427629]
[1750106985910,13.92375372,157.71,157.67,7.58288395]
[1750106986714,6.34086977,157.71,157.68,7.58288395]
[1750106987115,6.34086977,157.71,157.67,7.58288395]
[1750106988144,39.24406751,157.72,157.68,7.58288395]
[1750106988324,32.90357637,157.72,157.68,7.58288395]
[1750106988508,32.90357637,157.72,157.69,7.58288395]
[1750106988708,39.2439824,157.72,157.68,7.58288395]
[1750106989526,32.90357637,157.72,157.68,7.58288395]
[1750106990222,32.90357637,157.72,157.68,13.92475081]
[1750106990618,40.48646032,157.72,157.68,7.58288395]
[1750106991025,32.90357637,157.72,157.68,13.92482706]
[1750106991340,39.24393856,157.72,157.68,7.58288395]
[1750106992242,46.82682251,157.72,157.68,7.58288395]
[1750106992446,46.82682251,157.72,157.66,6.34265474]
[1750106992621,7.58288395,157.71,157.67,7.58288395]
[1750106994117,46.82682251,157.72,157.67,13.92521276]
[1750106995623,7.58288395,157.7,157.65,39.7]
[1750106995837,7.58288395,157.7,157.66,7.58288395]
[1750106996917,7.58288395,157.7,157.66,13.92541043]
[1750106997147,6.34075798,157.71,157.66,13.92541043]
[1750106997324,13.92364193,157.71,157.66,13.92541043]
[1750106997949,7.58288395,157.7,157.65,47.28288395]
[1750106998128,7.58288395,157.7,157.65,53.62592876]
[1750106998468,7.58288395,157.7,157.66,7.58288395]
[1750106999243,13.9240673,157.7,157.66,7.58288395]
[1750107004638,13.9240673,157.7,157.66,13.92557539]
[1750107004954,7.58288395,157.7,157.66,13.92557539]
[1750107005544,32.90357637,157.72,157.69,7.58288395]
[1750107005727,9.22799149,157.76,157.71,7.58288395]
[1750107005926,9.22799149,157.76,157.75,7.58288395]
[1750107006454,7.8839,157.82,157.75,7.58288395]
[1750107006625,15.46678395,157.82,157.77,7.58288395]
[1750107006829,7.8839,157.82,157.77,7.58288395]
[1750107007135,15.46678395,157.82,157.77,7.58288395]
[1750107008133,15.46678395,157.82,157.78,7.58288395]
[1750107009540,21.80315935,157.82,157.78,7.58288395]
[1750107009863,7.58288395,157.8,157.76,7.58288395]
[1750107010031,15.91621728,157.81,157.76,7.58288395]
[1750107010645,22.25299933,157.81,157.76,7.58288395]
[1750107010854,7.58288395,157.8,157.75,7.58288395]
[1750107011334,7.58288395,157.8,157.76,7.58288395]
[1750107011757,13.92013707,157.8,157.76,7.58288395]
[1750107011941,13.92013707,157.8,157.75,7.58288395]
[1750107012140,7.58288395,157.79,157.75,7.58288395]
[1750107012341,7.58288395,157.79,157.74,7.58288395]
[1750107013261,7.58288395,157.78,157.73,13.92274013]
[1750107013760,7.58288395,157.75,157.71,39.7]
[1750107014054,7.58288395,157.74,157.7,6.3410187]
[1750107014244,7.58288395,157.74,157.69,13.92431896]
[1750107014447,7.58288395,157.72,157.68,6.34184599]
[1750107016272,6.33966108,157.74,157.68,13.92472994]
[1750107016445,7.58288395,157.72,157.68,13.92472994]
[1750107018643,7.58288395,157.71,157.68,6.34184599]
[1750107018861,7.58288395,157.7,157.67,6.34221634]
[1750107019987,7.58288395,157.7,157.66,6.3427629]
[1750107020273,7.58288395,157.7,157.66,13.92564685]
[1750107020947,7.58288395,157.71,157.66,13.92564685]
[1750107024150,6.34036055,157.72,157.66,13.92564685]
[1750107024351,7.58288395,157.71,157.66,13.92564685]
[1750107024564,7.58288395,157.7,157.66,13.92564685]
[1750107025770,0.14216157,157.73,157.66,13.92564685]
[1750107025966,7.58288395,157.71,157.66,13.92564685]
[1750107028855,7.58288395,157.7,157.66,13.92564685]
[1750107029953,7.58288395,157.7,157.66,6.3427629]
[1750107030271,7.58288395,157.7,157.66,13.92564685]
[1750107031555,7.58288395,157.69,157.65,39.7]
[1750107031755,7.58288395,157.67,157.65,39.7]
[1750107031961,26.94585411,157.67,157.65,39.7]
[1750107032161,19.36297016,157.67,157.65,39.7]
[1750107033664,26.94585411,157.67,157.65,39.7]
[1750107034482,26.94585411,157.67,157.63,13.9267553]
[1750107034655,26.94585411,157.67,157.63,6.34387135]
[1750107034851,19.36297016,157.67,157.62,59.71965786]
[1750107035193,26.94585411,157.67,157.62,73.64679733]
[1750107036968,26.94585411,157.67,157.62,66.06391338]
[1750107037167,26.94585411,157.67,157.62,73.64679733]
[1750107038175,26.94585411,157.67,157.62,113.34679733]
[1750107039287,19.36297016,157.67,157.64,6.34356762]
[1750107039586,19.36297016,157.67,157.64,13.92645157]
[1750107040459,19.36297016,157.67,157.64,6.34356762]
[1750107040659,19.36297016,157.67,157.64,13.92645157]
[1750107041380,19.36297016,157.67,157.63,6.34397005]
[1750107041560,19.36297016,157.67,157.64,7.58288395]
[1750107043165,19.36297016,157.67,157.63,6.34397005]
[1750107043671,7.58288395,157.66,157.63,6.34397005]
[1750107043877,26.94585411,157.67,157.63,6.34397005]
[1750107044466,7.58288395,157.66,157.63,6.34397005]
[1750107045483,7.58288395,157.66,157.62,66.06388511]
[1750107047271,26.0,157.62,157.57,7.58288395]
[1750107047578,26.0,157.62,157.56,7.58288395]
[1750107047579,7.58288395,157.61,157.56,7.58288395]
[1750107047761,7.58288395,157.59,157.55,7.58288395]
[1750107047962,27.12,157.61,157.55,7.58288395]
[1750107048286,7.58288395,157.59,157.55,7.58288395]
[1750107048462,7.58288395,157.59,157.54,7.58288395]
[1750107049087,7.58288395,157.59,157.55,7.58288395]
[1750107049463,7.58288395,157.6,157.56,7.58288395]
[1750107049665,7.58288395,157.6,157.55,7.58288395]
[1750107049878,7.58288395,157.59,157.54,6.34745028]
[1750107050079,7.58288395,157.59,157.54,13.93033423]
[1750107050384,7.58288395,157.58,157.53,7.58288395]
[1750107050684,7.58288395,157.57,157.53,7.58288395]
[1750107050991,7.58288395,157.58,157.53,7.58288395]
[1750107051170,7.58288395,157.58,157.54,7.58288395]
[1750107052366,7.58288395,157.58,157.54,13.93008698]
[1750107053282,90.56648262,157.61,157.56,7.58288395]
[1750107053591,90.56648262,157.61,157.6,7.58288395]
[1750107054299,90.56648262,157.61,157.6,13.92806161]
[1750107054470,53.04097016,157.67,157.6,13.92806161]
[1750107054795,7.58288395,157.65,157.61,7.58288395]
[1750107056269,7.58288395,157.65,157.62,6.34437254]
[1750107057116,7.58288395,157.64,157.62,6.34437254]
[1750107057723,7.58288395,157.65,157.62,6.34437254]
[1750107057892,12.29835079,157.65,157.62,6.34437254]
[1750107058194,7.58288395,157.65,157.62,6.34437254]
[1750107058812,7.58288395,157.65,157.61,7.58288395]
[1750107058813,7.58288395,157.65,157.6,7.58288395]
[1750107059110,7.58288395,157.65,157.61,7.58288395]
[1750107059813,4.71546684,157.66,157.61,7.58288395]
[1750107059977,4.71546684,157.66,157.62,7.58288395]
[1750107060171,7.58288395,157.66,157.59,15.86381518]
[1750107060496,7.58288395,157.66,157.62,7.58288395]
[1750107060689,7.58288395,157.66,157.63,6.34397005]
[1750107061882,7.58288395,157.66,157.62,6.34437254]
[1750107062283,7.58288395,157.66,157.62,13.92725649]
[1750107064405,7.58288395,157.66,157.61,7.58288395]
[1750107064712,7.58288395,157.66,157.61,47.28288395]
[1750107064910,7.58288395,157.66,157.62,7.58288395]
[1750107065411,7.58288395,157.65,157.63,6.34397005]
[1750107065570,7.58288395,157.65,157.61,47.28288395]
[1750107065777,7.58288395,157.65,157.62,6.34424396]
[1750107066075,7.58288395,157.64,157.62,6.34424396]
[1750107068295,7.58288395,157.64,157.61,46.04462858]
[1750107068593,7.58288395,157.63,157.61,46.04462858]
[1750107068794,7.58288395,157.63,157.61,6.34462858]
[1750107068972,7.58288395,157.64,157.61,6.34462858]
[1750107069390,7.58288395,157.64,157.6,6.34517766]
[1750107070378,33.42276431,157.66,157.6,6.34517766]
[1750107070578,7.58288395,157.64,157.6,6.34517766]
[1750107073489,7.58288395,157.64,157.6,7.58288395]
[1750107074600,7.58288395,157.64,157.61,6.34477507]
[1750107075686,0.14216157,157.66,157.61,6.34477507]
[1750107075883,7.58288395,157.64,157.61,6.34477507]
[1750107077502,6.34292568,157.66,157.61,6.34477507]
[1750107077691,12.31586261,157.65,157.61,6.34477507]
[1750107077893,4.73297866,157.64,157.61,6.34477507]
[1750107078100,7.58288395,157.65,157.61,6.34477507]
[1750107078280,4.7330297,157.64,157.61,6.34477507]
[1750107078487,7.58288395,157.65,157.61,6.34477507]
[1750107078689,4.73297427,157.64,157.61,6.34477507]
[1750107078891,7.58288395,157.65,157.61,6.34477507]
[1750107079084,7.58288395,157.65,157.59,15.86384091]
[1750107079085,12.31586585,157.64,157.59,15.86384091]
[1750107079305,53.04097016,157.67,157.58,13.92886694]
[1750107079306,7.58288395,157.63,157.58,13.92886694]
[1750107079506,27.04097016,157.67,157.62,7.58288395]
[1750107079824,4.73196145,157.66,157.62,7.58288395]
[1750107080110,27.04097016,157.67,157.63,7.58288395]
[1750107081380,27.04097016,157.67,157.64,6.34356762]
[1750107083613,34.62385411,157.67,157.64,6.34356762]
[1750107086783,27.04097016,157.67,157.64,6.34356762]
[1750107089011,27.04097016,157.67,157.62,6.34437254]
[1750107089203,27.04097016,157.67,157.63,7.58288395]
[1750107089409,34.62385411,157.67,157.63,7.58288395]
[1750107090192,34.62385411,157.67,157.64,6.34356762]
[1750107092803,27.04097016,157.67,157.64,6.34356762]
[1750107093915,19.36297016,157.67,157.65,7.58288395]
[1750107095520,19.36297016,157.67,157.64,29.78537062]
[1750107095916,19.36297016,157.67,157.62,22.20530389]
[1750107096113,19.36297016,157.67,157.64,7.58288395]
[1750107097326,19.36297016,157.67,157.65,6.34316523]
[1750107098293,19.36297016,157.67,157.62,22.20530389]
[1750107098501,19.36297016,157.67,157.64,7.58288395]
[1750107098819,19.36297016,157.67,157.65,7.58288395]
[1750107099427,19.36297016,157.67,157.62,22.20530389]
[1750107099725,19.36297016,157.67,157.65,7.58288395]
[1750107100227,19.36297016,157.67,157.66,6.3427629]
[1750107102102,19.36297016,157.67,157.65,6.34316523]
[1750107103215,19.36297016,157.67,157.65,13.92604918]
[1750107105718,19.36297016,157.67,157.65,6.34316523]
[1750107108634,19.36297016,157.67,157.64,6.34340351]
[1750107108919,26.94585411,157.67,157.64,6.34340351]
[1750107109623,19.36297016,157.67,157.64,6.34340351]
[1750107113632,4.74179965,157.66,157.64,6.34340351]
[1750107113925,19.36297016,157.67,157.64,6.34340351]
[1750107114135,4.7418003,157.66,157.64,6.34340351]
[1750107114321,19.36297016,157.67,157.64,6.34340351]
[1750107114909,19.36297016,157.67,157.64,13.92628746]
[1750107115250,19.36297016,157.67,157.66,7.58288395]
[1750107115425,19.36297016,157.67,157.66,13.92564685]
[1750107116332,19.36297016,157.67,157.66,6.3427629]
[1750107117632,19.36297016,157.67,157.66,13.92564685]
[1750107120839,19.36297016,157.67,157.66,53.62564685]
[1750107123539,19.36297016,157.67,157.66,46.0427629]
[1750107123840,19.36297016,157.67,157.66,53.62564685]
[1750107124439,19.36297016,157.67,157.66,46.0427629]
[1750107124617,24.10897276,157.67,157.66,39.7]
[1750107126433,31.69185671,157.67,157.66,39.7]
[1750107126936,31.69185671,157.67,157.63,13.92654801]
[1750107127144,4.7460026,157.66,157.63,6.34366406]
[1750107127335,4.7460026,157.65,157.63,13.92654801]
[1750107127519,26.94585411,157.67,157.63,13.92654801]
[1750107127722,4.74771682,157.66,157.63,13.92654801]
[1750107127917,19.36297016,157.67,157.63,13.92654801]
[1750107128241,4.74737324,157.66,157.63,13.92654801]
[1750107128445,19.36297016,157.67,157.63,13.92654801]
[1750107128648,4.74737324,157.66,157.63,13.92654801]
[1750107128947,19.36297016,157.67,157.63,13.92654801]
[1750107129143,4.74770834,157.66,157.63,6.34366406]
[1750107129447,19.36297016,157.67,157.64,7.58288395]
[1750107129631,4.74770779,157.66,157.64,7.58288395]
[1750107129834,19.36297016,157.67,157.64,7.58288395]
[1750107130036,4.74778141,157.66,157.64,7.58288395]
[1750107130235,19.36297016,157.67,157.64,7.58288395]
[1750107130436,4.74778141,157.66,157.64,7.58288395]
[1750107130638,19.36297016,157.67,157.64,7.58288395]
[1750107130836,4.74781512,157.66,157.64,13.92626009]
[1750107131032,19.36297016,157.67,157.64,13.92626009]
[1750107131236,4.74822979,157.66,157.64,13.92626009]
[1750107131531,19.36297016,157.67,157.64,13.92626009]
[1750107131849,4.74817991,157.66,157.64,6.34337614]
[1750107132054,19.36297016,157.67,157.64,6.34337614]
[1750107132254,4.74817991,157.66,157.64,6.34337614]
[1750107132431,19.36297016,157.67,157.64,6.34337614]
[1750107132776,4.74842401,157.66,157.64,6.34337614]
[1750107132929,19.36297016,157.67,157.63,4.8689937]
[1750107133131,4.74847471,157.66,157.63,4.8689937]
[1750107133330,19.36297016,157.67,157.62,6.34437254]
[1750107133530,4.74840029,157.66,157.63,4.8689937]
[1750107133725,19.36297016,157.67,157.63,4.8689937]
[1750107133921,4.7486702,157.66,157.64,11.21256132]
[1750107134177,19.36297016,157.67,157.64,11.21256132]
[1750107134455,19.36297016,157.67,157.65,4.8689937]
[1750107136133,19.36297016,157.67,157.65,11.21215893]
[1750107136361,4.74948228,157.66,157.65,11.21215893]
[1750107136743,19.36297016,157.67,157.65,11.21215893]
[1750107137333,19.36297016,157.67,157.65,6.34316523]
[1750107137849,4.74985299,157.66,157.65,6.34316523]
[1750107138243,19.36297016,157.67,157.65,4.8689937]
[1750107138843,19.36297016,157.67,157.66,4.8689937]
[1750107140139,19.36297016,157.67,157.66,11.2117566]
[1750107140444,28.98177368,157.67,157.64,46.04347669]